[Event "83rd Georgian Championship 2024"]
[Site "Tbilisi"]
[Date "2024.01.29"]
[Round "1.1"]
[White "Paichadze, Luka"]
[Black "Kacharava, Nikolozi"]
[Result "1-0"]
[ECO "C45"]
[WhiteElo "2503"]
[BlackElo "2523"]
[Annotator "TA"]
[PlyCount "97"]
[EventDate "2024.01.29"]
[EventCountry "GEO"]
[SourceTitle "playchess.com"]
[Source "ChessBase"]
[SourceQuality "1"]
[TimeControl "5400+30"]

{[%evp 26,97,0,-20,-10,-22,-24,-10,42,26,16,33,25,24,25,19,21,20,29,35,50,35,47,62,59,59,58,58,64,60,117,109,123,117,168,160,154,154,176,165,166,172,164,178,174,173,189,189,189,186,244,247,240,240,296,299,352,336,543,543,5592,5625,4963,4930,29949,29943,29940,797,29953,29939,29974,29975,29973,29975]} 1. e4 {[%emt 0:00:07]} e5 {[%emt 0:00:18]} 2. Nf3 {[%emt 0:00:15]} Nc6 {[%emt 0:00:31]} 3. d4 {[%emt 0:01:13]} exd4 {[%emt 0:00:25]} 4. Nxd4 {[%emt 0:00:08]} Bc5 {[%emt 0:00:32]} 5. Nb3 {[%emt 0:01:56]} Bb6 {[%emt 0:00:48]} 6. Qe2 {[%emt 0:01:24] C45: Scotch Game.} Nf6 {[%emt 0:01:11]} 7. Be3 {[%emt 0:00:31]} O-O {[%emt 0:01:51]} 8. Nc3 {[%emt 0:00:19]} d5 {[%emt 0:02:01]} 9. O-O-O {[%emt 0:06:49]} d4 {[%emt 0:01:27]} 10. Bg5 {[%emt 0:05:39]} h6 {[%emt 0:06:31]} 11. Bxf6 {[%emt 0:03:39]} Qxf6 {[%emt 0:01:00]} 12. Nd5 {[%emt 0:00:12]} Qd6 {[%emt 0:03:56]} 13. Qf3 {[%emt 0:12:46]} Be6 {[%emt 0:06:57]} (13... f5 $5) 14. Qg3 {[%emt 0:03:41]} Qxg3 $146 {[%emt 0:05:04]} ({Predecessor:} 14... Rad8 15. Qxd6 Rxd6 16. Nf4 Ne5 17. Nxe6 fxe6 18. f3 c5 19. Nd2 Bd8 20. Nc4 Nxc4 21. Bxc4 {½-½ Oglaza,O (2245)-Baumegger,S (2450) Graz op-A 2018 (2)}) 15. hxg3 {[%emt 0:00:22]} Bxd5 {[%emt 0:10:09]} 16. exd5 {[%emt 0:00:09]} Nb4 {[%emt 0:00:22]} (16... Ne5 $11) 17. c4 {[%emt 0:07:00]} dxc3 {[%emt 0:09:13]} (17... Nxa2+ $2 18. Kb1 Nb4 19. c5 $18 (19. Nxd4 Rad8 $17)) 18. bxc3 {[%emt 0:00:07]} Nxa2+ {[%emt 0:00:14]} 19. Kb2 {[%emt 0:00:08]} Nxc3 $1 {[%emt 0:00:33]} 20. Kxc3 {[%emt 0:00:05]} Bxf2 {[%emt 0:00:06]} 21. g4 {[%emt 0:01:34]} Rfe8 {[%emt 0:13:25]} 22. Bc4 {[%emt 0:02:44]} Re4 {[%emt 0:02:53]} 23. Rdf1 {[%emt 0:08:12]} Rf4 {[%emt 0:02:19]} 24. Rh5 {[%emt 0:15:16]} Re8 {[%emt 0:08:20]} 25. Rf5 {[%emt 0:00:52]} Ree4 {[%emt 0:11:09]} 26. Rxf4 {[%emt 0:09:02]} (26. Rxf2 Rxc4+ 27. Kd3 Rxf2 28. Rxf2 (28. Kxc4 Rxg2 29. Rf4 g5 $11) 28... Rxg4 $11) 26... Rxf4 {[%emt 0:00:02]} 27. Be2 {[%emt 0:00:22]} Bg3 {[%emt 0:04:46]} (27... Kf8 $14) 28. Bf3 {[%emt 0:00:49]} Rf6 {[%emt 0:02:09]} 29. Nc5 {[%emt 0:02:09]} c6 {[%emt 0:01:53]} (29... Rb6 $16) 30. Nxb7 {[%emt 0:04:53]} cxd5 {[%emt 0:00:12]} 31. Kd4 {[%emt 0:00:15]} Rf4+ {[%emt 0:01:21]} 32. Kxd5 {[%emt 0:00:07]} f5 {[%emt 0:00:35] [#]} 33. gxf5 $1 {[%emt 0:03:12]} Rxf5+ {[%emt 0:00:02]} 34. Kc4 {[%emt 0:00:24]} Rf4+ {[%emt 0:02:41]} 35. Kd3 {[%emt 0:00:15]} Rb4 {[%emt 0:01:40]} 36. Bd5+ {[%emt 0:02:02]} Kh7 {[%emt 0:00:01]} 37. Rf8 {[%emt 0:01:07]} Be5 {[%emt 0:01:34]} (37... h5 {is a better defense.} 38. Be4+ g6) 38. Be4+ $18 {[%emt 0:01:27]} g6 {[%emt 0:00:01]} 39. Rf7+ {[%emt 0:00:13]} Kg8 {[%emt 0:00:56]} 40. Rd7 {[%emt 0:00:33]} (40. Bxg6 Rg4 $14) 40... Rb1 {[%emt 0:00:49]} 41. Bd5+ {[%emt 0:01:10]} (41. Bxg6 $2 {too greedy.} Rd1+ 42. Ke2 Rxd7 $19) 41... Kh8 $2 {[%emt 0:00:14]} (41... Kf8 {might work better.} 42. Nc5 Rd1+ 43. Ke2 Rd4) 42. Nd8 $18 {[%emt 0:00:25]} Bg7 {[%emt 0:00:37]} 43. Ne6 {[%emt 0:00:43]} Be5 {[%emt 0:00:40]} 44. Nf8 {[%emt 0:00:23]} Bg7 {[%emt 0:00:24]} 45. Nxg6+ {[%emt 0:00:09]} Kh7 {[%emt 0:00:02]} 46. Nh4 {[%emt 0:02:02]} (46. Nf8+ $142 Kh8 47. Ne6 Rd1+ 48. Ke4 Rd2 49. Kf5 (49. Nxg7 Rxg2 50. Ne6 Rg8 51. Kf5 Rg1 52. Nf4 Rg7 53. Ng6+ Kh7) (49. Rxg7 Re2+ 50. Kf5 Rxe6 51. Rxa7 Rb6 52. Be6 Rb2 53. g4 Rb5+ 54. Kg6 Rg5+ 55. Kf6 Rg8) 49... Rf2+ 50. Bf3 Rb2 51. Nxg7) 46... Rb2 {[%emt 0:01:05]} 47. Rxa7 {[%emt 0:07:10]} Rf2 {[%emt 0:00:29]} 48. Nf5 {[%emt 0:00:00]} Rxf5 {[%emt 0:00:31]} 49. Be4 {[%emt 0:00:00]} 1-0

[Event "83rd Georgian Championship 2024"]
[Site "Tbilisi"]
[Date "2024.01.29"]
[Round "1.2"]
[White "Mchedlishvili, Mikheil"]
[Black "Jobava, Baadur"]
[Result "1/2-1/2"]
[ECO "C42"]
[WhiteElo "2569"]
[BlackElo "2591"]
[Annotator "RC"]
[PlyCount "25"]
[EventDate "2024.01.29"]
[EventCountry "GEO"]
[SourceTitle "playchess.com"]
[Source "ChessBase"]
[SourceQuality "1"]
[TimeControl "5400+30"]

1. e4 {[%emt 0:00:12]} e5 {[%emt 0:00:15]} 2. Nf3 {[%emt 0:00:32]} Nf6 {[%emt 0:00:13]} 3. Nxe5 {[%emt 0:01:16]} d6 {[%emt 0:00:11]} 4. Nf3 {[%emt 0:01:33]} Nxe4 {[%emt 0:03:55]} 5. d4 {[%emt 0:00:34]} d5 {[%emt 0:00:33]} 6. Bd3 {[%emt 0:00:35]} Bd6 {[%emt 0:00:16]} 7. O-O {[%emt 0:00:43]} O-O {[%emt 0:00:21]} 8. c4 {[%emt 0:01:00]} c6 {[%emt 0:01:00]} 9. Nc3 {[%emt 0:02:28]} Nxc3 {[%emt 0:04:00]} 10. bxc3 {[%emt 0:00:20]} Bg4 {[%emt 0:00:30]} 11. h3 {[%emt 0:03:07]} Bh5 {[%emt 0:00:29]} 12. cxd5 {[%emt 0:12:05]} cxd5 {[%emt 0:00:14]} 13. Rb1 {[%emt 0:02:27]} 1/2-1/2

[Event "83rd Georgian Championship 2024"]
[Site "Tbilisi"]
[Date "2024.01.29"]
[Round "1.3"]
[White "Tsomaia, Nikoloz"]
[Black "kiladze, Luka"]
[Result "1-0"]
[ECO "B30"]
[WhiteElo "2231"]
[BlackElo "2179"]
[Annotator "TA"]
[PlyCount "143"]
[EventDate "2024.01.29"]
[EventCountry "GEO"]
[SourceTitle "playchess.com"]
[Source "ChessBase"]
[SourceQuality "1"]
[TimeControl "5400+30"]

{[%evp 20,143,30,27,24,37,32,33,36,47,39,38,47,15,14,10,11,17,22,14,47,50,48,27,46,35,43,14,29,0,0,-8,-8,-8,-8,-8,-8,-23,-5,-8,0,-5406,0,-2,0,0,0,0,0,0,559,535,1081,1396,1481,1131,1335,1291,1105,483,421,495,462,445,483,491,535,429,533,533,520,521,466,429,429,429,429,429,429,429,429,429,429,429,429,429,421,421,436,436,421,405,564,521,29975,29976,29976,29977,29977,29978,29982,29980,29980,29979,29981,29982,29982,29983,29986,29984,29990,29985,29998,29988,29988,29989,29989,29990,29990,29984,29990,29991,29991,29992,29996,29997]} 1. e4 {[%emt 0:00:03]} c5 {[%emt 0:00:05]} 2. Nf3 {[%emt 0:00:06]} Nc6 {[%emt 0:00:03]} 3. Bb5 {[%emt 0:00:19]} e6 {[%emt 0:00:05]} 4. O-O {[%emt 0:00:11]} Nge7 {[%emt 0:00:02]} 5. d4 {[%emt 0:02:40]} cxd4 {[%emt 0:03:15]} 6. Nxd4 {[%emt 0:00:09]} a6 {[%emt 0:04:00] 6...Ng6 is a critical line. B30: Sicilian: 2...Nc6 3 Bb5, lines without ...g6.} 7. Be2 {[%emt 0:00:39]} Qc7 {[%emt 0:02:42]} 8. Be3 {[%emt 0:10:21]} Nxd4 {[%emt 0:03:06]} 9. Qxd4 {[%emt 0:19:30]} Nc6 {[%emt 0:03:03]} 10. Qc3 {[%emt 0:00:33]} Bd6 {[%emt 0:01:42]} 11. f4 {[%emt 0:03:58]} O-O {[%emt 0:02:40]} 12. Nd2 {[%emt 0:02:46]} Bb4 $146 {[%emt 0:04:00]} ({Predecessor:} 12... b5 13. e5 Bb4 14. Qd3 Be7 15. c3 d6 16. exd6 Bxd6 17. a4 Rb8 18. Ne4 Be7 19. axb5 axb5 {½-½ Stukalov,M (2170)-Cipressi,N (2210) W-ch WS/CCM/B/04 email 2019}) 13. Qd3 {[%emt 0:06:19]} Be7 {[%emt 0:02:01]} 14. c3 {[%emt 0:03:09]} b5 {[%emt 0:06:01]} 15. b4 {[%emt 0:17:36]} Bb7 {[%emt 0:05:02]} 16. a4 {[%emt 0:00:24]} bxa4 {[%emt 0:02:12]} 17. Rxa4 {[%emt 0:07:55]} d5 {[%emt 0:05:52]} 18. exd5 {[%emt 0:06:03]} exd5 {[%emt 0:01:51]} 19. Nb3 {[%emt 0:00:57]} d4 {[%emt 0:02:33]} 20. Nxd4 {[%emt 0:01:00]} Bf6 {[%emt 0:02:36]} 21. Bf3 {[%emt 0:08:03]} Nxd4 {[%emt 0:01:52]} 22. Bxb7 {[%emt 0:02:47]} Qxb7 {[%emt 0:01:17]} 23. Bxd4 {[%emt 0:00:09]} Rfd8 {[%emt 0:02:36]} 24. Rfa1 {[%emt 0:00:24]} h6 {[%emt 0:02:26]} 25. f5 {[%emt 0:03:12]} Rac8 {[%emt 0:17:41]} 26. Qxa6 {[%emt 0:01:27]} (26. Rxa6 $2 {loses.} Rxc3 27. Qf1 Rxd4 $19 (27... Bxd4+ $2 28. Kh1 $19)) 26... Bxd4+ {[%emt 0:00:04]} 27. cxd4 {[%emt 0:00:05]} Qe4 {[%emt 0:00:20]} 28. Qf1 {[%emt 0:02:27]} Rc2 {[%emt 0:02:24]} ({Don't take} 28... Qxd4+ 29. Kh1 $17) (28... Rxd4 {simplifies} 29. Qf3 Qe5 30. Rf1 Rxb4 31. Rxb4 Qc5+) 29. b5 {[%emt 0:00:52]} Rdc8 {[%emt 0:05:25]} 30. Re1 $2 {[%emt 0:00:33][%mdl 8192]} (30. Kh1 $11) 30... Qd5 $2 {[%emt 0:03:14]} (30... Rxg2+ $1 $19 31. Qxg2 Qxe1+ 32. Qf1 Qe3+ 33. Kh1 Rc1 34. Qxc1 Qxc1+ 35. Kg2 Qc2+ 36. Kf3 Qxa4) 31. Ra3 {[%emt 0:00:52]} Qxd4+ {[%emt 0:00:30]} 32. Kh1 {[%emt 0:00:08]} Rf2 {[%emt 0:02:37]} 33. Qg1 $1 {[%emt 0:00:22]} Qf4 {[%emt 0:09:50]} 34. b6 {[%emt 0:00:21]} Rcc2 $2 {[%emt 0:01:40][%mdl 8192]} (34... Rb2 $11) 35. b7 $18 {[%emt 0:00:51]} Rxg2 {[%emt 0:01:25]} 36. Qxg2 {[%emt 0:00:10]} Rxg2 {[%emt 0:00:04]} 37. Kxg2 {[%emt 0:00:13]} Kh7 {[%emt 0:01:04]} 38. Rb3 {[%emt 0:01:15]} Qd2+ {[%emt 0:01:25]} 39. Kh3 {[%emt 0:00:37]} (39. Kf1 $142 Qf4+ 40. Kg1 Qd4+ 41. Ree3) 39... Qxe1 $18 {[%emt 0:00:18]} 40. b8=Q {[%emt 0:00:04]} Qf1+ {[%emt 0:00:16]} 41. Kg3 {[%emt 0:00:10]} Qe1+ {[%emt 0:00:06]} 42. Kf3 {[%emt 0:00:22]} Qd1+ {[%emt 0:00:18]} 43. Ke3 {[%emt 0:00:42]} Qg1+ {[%emt 0:00:36]} 44. Ke4 {[%emt 0:00:35]} Qg2+ {[%emt 0:00:08]} 45. Kd4 {[%emt 0:00:57]} Qd2+ {[%emt 0:00:21]} 46. Rd3 {[%emt 0:00:36]} Qf2+ {[%emt 0:00:05]} 47. Kc3 {[%emt 0:00:25]} Qe1+ {[%emt 0:00:08]} 48. Kc2 {[%emt 0:00:40]} Qe2+ {[%emt 0:00:08]} 49. Rd2 {[%emt 0:00:10]} Qe4+ {[%emt 0:00:29]} 50. Kb2 {[%emt 0:00:10]} Qxf5 {[%emt 0:00:13]} 51. Qb3 {[%emt 0:00:20]} g6 {[%emt 0:00:07]} 52. Qd5 {[%emt 0:00:15]} Qf4 {[%emt 0:00:54]} 53. Kc3 {[%emt 0:00:12]} Qe3+ {[%emt 0:00:29]} 54. Rd3 {[%emt 0:00:17]} Qc1+ {[%emt 0:00:06]} 55. Kb4 {[%emt 0:00:09]} Qb1+ {[%emt 0:01:13]} 56. Kc5 {[%emt 0:00:10]} Qc2+ {[%emt 0:00:39]} 57. Kd6 {[%emt 0:00:56]} Qxh2+ {[%emt 0:00:20]} 58. Ke7 {[%emt 0:00:04]} Qc7+ {[%emt 0:00:20]} 59. Kf8 {[%emt 0:00:38]} Qc8+ {[%emt 0:01:15]} 60. Kxf7 {[%emt 0:00:13]} h5 {[%emt 0:00:53]} 61. Qd7 {[%emt 0:00:22]} Qg8+ {[%emt 0:00:18]} 62. Kf6+ {[%emt 0:00:57]} Kh6 {[%emt 0:00:08]} 63. Qd8 {[%emt 0:01:18]} Qg7+ {[%emt 0:00:17]} 64. Ke6 {[%emt 0:00:02]} Qb2 {[%emt 0:02:53]} 65. Qf8+ {[%emt 0:00:33]} Kg5 {[%emt 0:00:17]} 66. Qc5+ {[%emt 0:00:16]} Kh6 {[%emt 0:00:23]} 67. Qe3+ {[%emt 0:00:08]} Kh7 {[%emt 0:00:59]} 68. Rd7+ {[%emt 0:00:10]} Kg8 {[%emt 0:00:04]} 69. Qe5 {[%emt 0:00:30]} Qb6+ {[%emt 0:00:22]} 70. Ke7 {[%emt 0:03:43]} Qb4+ {[%emt 0:00:39]} 71. Kd8 {[%emt 0:00:00]} Qb6+ {[%emt 0:00:26]} 72. Ke8 {[%emt 0:01:00]} 1-0

[Event "83rd Georgian Championship 2024"]
[Site "Tbilisi"]
[Date "2024.01.29"]
[Round "1.4"]
[White "Sanikidze, Tornike"]
[Black "Gagunashvili, Merab"]
[Result "1/2-1/2"]
[ECO "D36"]
[WhiteElo "2449"]
[BlackElo "2562"]
[Annotator "RC"]
[PlyCount "43"]
[EventDate "2024.01.29"]
[EventCountry "GEO"]
[SourceTitle "playchess.com"]
[Source "ChessBase"]
[SourceQuality "1"]
[TimeControl "5400+30"]

1. d4 {[%emt 0:00:05]} d5 {[%emt 0:03:57]} 2. c4 {[%emt 0:00:26]} c6 {[%emt 0:00:12]} 3. Nf3 {[%emt 0:00:24]} Nf6 {[%emt 0:00:07]} 4. Nc3 {[%emt 0:00:44]} e6 {[%emt 0:00:12]} 5. Bg5 {[%emt 0:00:30]} Nbd7 {[%emt 0:01:10]} 6. cxd5 {[%emt 0:01:13]} exd5 {[%emt 0:01:35]} 7. e3 {[%emt 0:01:11]} Be7 {[%emt 0:00:05]} 8. Qc2 {[%emt 0:00:38]} Nh5 {[%emt 0:02:08]} 9. Bxe7 {[%emt 0:02:46]} Qxe7 {[%emt 0:00:06]} 10. O-O-O {[%emt 0:00:24]} Ndf6 {[%emt 0:05:27]} 11. Bd3 {[%emt 0:05:21]} g6 {[%emt 0:01:15]} 12. Ne5 {[%emt 0:11:20]} Ng4 {[%emt 0:05:33]} 13. Nxg4 {[%emt 0:02:04]} Bxg4 {[%emt 0:00:12]} 14. Rde1 {[%emt 0:01:05]} O-O-O {[%emt 0:06:48]} 15. f3 {[%emt 0:04:05]} Be6 {[%emt 0:00:31]} 16. Na4 {[%emt 0:00:54]} Ng7 {[%emt 0:06:41]} 17. Nc5 {[%emt 0:01:07]} Kb8 {[%emt 0:03:37]} 18. Kb1 {[%emt 0:01:29]} Bf5 {[%emt 0:07:37]} 19. Re2 {[%emt 0:08:46]} Bxd3 {[%emt 0:01:48]} 20. Qxd3 {[%emt 0:02:50]} Rhe8 {[%emt 0:03:14]} 21. Rhe1 {[%emt 0:04:23]} Ne6 {[%emt 0:01:12]} 22. Nxe6 {[%emt 0:03:13]} 1/2-1/2

[Event "83rd Georgian Championship 2024"]
[Site "Tbilisi"]
[Date "2024.01.30"]
[Round "2.1"]
[White "Kacharava, Nikolozi"]
[Black "Pantsulaia, Levan"]
[Result "1/2-1/2"]
[ECO "B12"]
[WhiteElo "2523"]
[BlackElo "2561"]
[Annotator "TA"]
[PlyCount "93"]
[EventDate "2024.01.29"]
[EventCountry "GEO"]
[SourceTitle "playchess.com"]
[Source "ChessBase"]
[SourceQuality "1"]
[TimeControl "5400+30"]

{[%evp 29,93,0,0,-23,-21,-21,-31,-16,-12,-35,-22,-74,0,0,22,24,32,0,0,0,0,5,5,7,9,0,0,0,2,2,2,2,2,2,49,2,3,3,3,3,3,3,3,3,3,3,3,3,4,0,0,0,0,0,0,0,0,0,0,-8,-8,-8,-8,-8,-8,-8]} 1. e4 {[%emt 0:00:15]} c6 {[%emt 0:00:28]} 2. d4 {[%emt 0:00:20]} d5 {[%emt 0:00:08]} 3. e5 {[%emt 0:00:11]} Bf5 {[%emt 0:00:09]} 4. Nc3 {[%emt 0:00:28]} e6 {[%emt 0:00:50]} 5. g4 {[%emt 0:00:39]} Bg6 {[%emt 0:00:09]} 6. Nge2 {[%emt 0:00:30]} c5 {[%emt 0:00:17]} 7. h4 {[%emt 0:00:49]} h5 {[%emt 0:00:07]} 8. Nf4 {[%emt 0:00:36]} cxd4 {[%emt 0:00:07] B12: Caro-Kann: Advance Variation.} 9. Nxg6 {[%emt 0:01:28]} fxg6 {[%emt 0:00:21]} 10. Qxd4 {[%emt 0:00:38]} Nc6 {[%emt 0:02:54]} 11. Bb5 {[%emt 0:01:24]} Nge7 {[%emt 0:01:07]} 12. Bg5 {[%emt 0:02:48]} Qb6 $146 {[%emt 0:03:57]} ({Predecessor:} 12... a6 13. Bxc6+ Nxc6 14. Qd3 Qd7 15. O-O-O Bb4 16. Ne4 Qf7 17. Nd6+ {½-½ Gazik,V (2486)-Gumularz,S (2441) Wch U18 Porto Carras 2018 (10.1)}) 13. Qa4 {[%emt 0:25:21]} a6 {[%emt 0:06:24]} 14. O-O-O {[%emt 0:04:20]} Rc8 {[%emt 0:00:30]} 15. Bd3 {[%emt 0:04:23]} Qb4 {[%emt 0:01:57]} 16. Bxe7 {[%emt 0:10:51]} Qxa4 {[%emt 0:02:02]} 17. Nxa4 {[%emt 0:02:43]} Kxe7 {[%emt 0:02:46]} 18. f4 {[%emt 0:07:42]} Kf7 {[%emt 0:09:15]} ({Don't play} 18... hxg4 $6 19. Bxg6 g3 20. h5 $16) 19. gxh5 {[%emt 0:01:07]} Rxh5 {[%emt 0:02:50]} 20. Rdg1 {[%emt 0:00:59] [#]} (20. Be2 $11) 20... Ne7 {[%emt 0:01:10]} (20... Rh6 $1 $17) 21. Rg5 {[%emt 0:02:35]} Rxg5 {[%emt 0:08:25]} 22. hxg5 {[%emt 0:00:35]} (22. fxg5 Nf5 23. Kb1 Be7 $19) 22... Nf5 {[%emt 0:04:49]} 23. Nc3 {[%emt 0:01:49]} Bc5 {[%emt 0:00:43]} 24. Ne2 {[%emt 0:07:11]} Be3+ {[%emt 0:00:49]} 25. Kd1 {[%emt 0:00:33]} b5 {[%emt 0:04:42]} 26. Rh3 {[%emt 0:01:08]} Bb6 {[%emt 0:03:03]} 27. c3 {[%emt 0:04:44]} Ne3+ {[%emt 0:04:45]} 28. Kd2 {[%emt 0:00:28]} Nc4+ {[%emt 0:00:16]} 29. Bxc4 {[%emt 0:01:32]} dxc4 {[%emt 0:00:22]} 30. Nd4 {[%emt 0:04:42]} Rd8 {[%emt 0:08:15]} 31. Ke3 {[%emt 0:00:12]} b4 {[%emt 0:00:10]} (31... a5 $11) 32. Ke4 {[%emt 0:01:10]} (32. a3 $1 $14) 32... a5 $11 {[%emt 0:01:34]} 33. Rh2 {[%emt 0:02:21]} (33. Nb5 $5 Bc5 $8 34. b3 $11) 33... Bxd4 {[%emt 0:02:48]} 34. cxd4 {[%emt 0:00:08]} Rc8 {[%emt 0:00:10]} 35. Rc2 {[%emt 0:02:06]} Ke7 {[%emt 0:00:25]} 36. Rc1 {[%emt 0:01:00]} Kd7 {[%emt 0:01:04]} 37. a3 {[%emt 0:02:59]} Rc7 {[%emt 0:01:19]} 38. axb4 {[%emt 0:01:05]} axb4 {[%emt 0:00:05]} 39. d5 {[%emt 0:01:06]} c3 {[%emt 0:02:00]} 40. dxe6+ {[%emt 0:01:15]} Kxe6 {[%emt 0:00:05]} 41. bxc3 {[%emt 0:00:16]} Rc4+ {[%emt 0:01:23]} (41... Rxc3 42. Rxc3 bxc3 43. Kd3 Kd5 44. Kxc3 Kc5 45. Kd3 Kd5 46. Ke3) 42. Kd3 {[%emt 0:00:09]} Rxf4 {[%emt 0:00:05]} 43. cxb4 {[%emt 0:00:24]} Rxb4 {[%emt 0:00:18]} 44. Rc7 {[%emt 0:00:49]} Kxe5 {[%emt 0:00:19]} 45. Rxg7 {[%emt 0:00:29]} Kf5 {[%emt 0:00:05]} 46. Ke3 {[%emt 0:00:23]} Kxg5 {[%emt 0:00:07]} 47. Kf3 {[%emt 0:00:12]} 1/2-1/2

[Event "83rd Georgian Championship 2024"]
[Site "Tbilisi"]
[Date "2024.01.30"]
[Round "2.2"]
[White "Gagunashvili, Merab"]
[Black "Quparadze, Giga"]
[Result "1/2-1/2"]
[ECO "A29"]
[WhiteElo "2562"]
[BlackElo "2491"]
[Annotator "TA"]
[PlyCount "78"]
[EventDate "2024.01.29"]
[EventCountry "GEO"]
[SourceTitle "playchess.com"]
[Source "ChessBase"]
[SourceQuality "1"]
[TimeControl "5400+30"]

{[%evp 20,78,20,16,53,41,50,45,42,49,78,72,156,154,148,110,113,119,113,97,92,108,109,82,107,96,114,89,81,83,92,78,61,61,66,68,91,64,73,59,59,29,20,65,50,8,8,0,0,0,0,0,0,0,0,0,0,0,0,0,0]} 1. c4 {[%emt 0:00:04]} Nf6 {[%emt 0:00:10]} 2. Nc3 {[%emt 0:00:22]} e5 {[%emt 0:00:05]} 3. g3 {[%emt 0:01:17]} d5 {[%emt 0:00:06]} 4. cxd5 {[%emt 0:00:05]} Nxd5 {[%emt 0:00:03]} 5. Bg2 {[%emt 0:00:06]} Nb6 {[%emt 0:00:04]} 6. d3 {[%emt 0:00:12]} Be7 {[%emt 0:00:09]} 7. Nf3 {[%emt 0:00:06][%cal Bg1f3,Bf3e1,Be1d3][%mdl 32]} Nc6 {[%emt 0:00:05]} 8. O-O {[%emt 0:00:08]} O-O {[%emt 0:00:03]} 9. a3 {[%emt 0:00:09]} Be6 {[%emt 0:00:27]} 10. Be3 {[%emt 0:13:47]} a5 {[%emt 0:05:18]} 11. Na4 {[%emt 0:03:07]} e4 {[%emt 0:00:15]} 12. Ne1 {[%emt 0:01:58]} exd3 {[%emt 0:00:21]} 13. Nxd3 {[%emt 0:01:01]} Nc4 {[%emt 0:01:31] White is slightly better.} 14. Bc5 {[%emt 0:02:26]} Rb8 {[%emt 0:02:17]} 15. Rc1 {[%emt 0:03:27]} b5 {[%emt 0:04:04]} (15... Bd6 $142) 16. Bxc6 $16 {[%emt 0:09:46]} bxa4 {[%emt 0:00:04]} 17. Qxa4 {[%emt 0:11:21]} Nxb2 {[%emt 0:00:45]} 18. Qxa5 {[%emt 0:08:13]} Nxd3 {[%emt 0:00:08]} 19. Bxe7 {[%emt 0:00:59]} Qxe7 {[%emt 0:00:03]} 20. exd3 {[%emt 0:00:10]} Qd6 {[%emt 0:00:05] Wards off d4} 21. Rc3 {[%emt 0:06:26]} Rb6 {[%emt 0:00:33]} 22. Rfc1 {[%emt 0:02:02]} Rfb8 {[%emt 0:00:07]} 23. Qc5 {[%emt 0:02:29]} (23. a4 {feels hotter.} Rb1 24. Rxb1 Rxb1+ 25. Kg2) 23... Qxc5 {[%emt 0:02:01]} 24. Rxc5 {[%emt 0:01:12]} Rb3 {[%emt 0:00:04][%csl LRa3,LRd3]} 25. a4 {[%emt 0:01:20]} Rxd3 {[%emt 0:00:10]} 26. Bb5 {[%emt 0:00:54]} Ra3 {[%emt 0:00:20]} 27. Rxc7 {[%emt 0:00:23]} Rd8 {[%emt 0:00:23]} 28. h4 {[%emt 0:01:48][%cal Ob5d7]} h5 {[%emt 0:00:13]} 29. R7c2 {[%emt 0:03:35]} Rd4 {[%emt 0:00:59]} 30. Re1 {[%emt 0:01:18]} g5 {[%emt 0:02:16]} 31. hxg5 {[%emt 0:03:30][%cal Og5g6]} h4 {[%emt 0:00:03]} 32. g6 {[%emt 0:10:23]} hxg3 {[%emt 0:00:08] The position is equal.} 33. gxf7+ {[%emt 0:00:13]} Kxf7 {[%emt 0:01:19]} 34. fxg3 {[%emt 0:06:49]} Rxg3+ {[%emt 0:00:08]} 35. Rg2 {[%emt 0:00:28]} Rxg2+ {[%emt 0:00:06]} 36. Kxg2 {[%emt 0:00:03]} Bd7 {[%emt 0:00:09]} 37. Rb1 {[%emt 0:00:21]} Ke7 {[%emt 0:00:12]} 38. Kf3 {[%emt 0:00:13]} Bxb5 {[%emt 0:00:09]} 39. axb5 {[%emt 0:00:01]} Kd8 {[%emt 1:24:37] White really could win this.   Weighted Error Value: White=0.11 (very precise) /Black=0.10 (very precise) .  Mistake:       	---       	Black=1      Inaccurate:     	White=2     	Black=1      OK:         	White=8     	Black=13     Best:        	---       	Black=3} 1/2-1/2